bitfinex/quotes_ETHUSD_20220105
["timestamp","ask_amount","ask_price","bid_price","bid_amount"]
[1641393867157,1.315,3803.5,3802.6,0.00284216]
[1641393867355,0.01236613,3803.3,3802.5,0.0029166]
[1641393867556,0.65781,3802.6,3801.9,3.57246756]
[1641393867759,0.65781,3802.6,3801.5,1.08568149]
[1641393867760,0.65785,3802.4,3801.5,1.08568149]
[1641393867960,5.5721,3802.3,3802.0,0.00341054]
[1641393868153,1.315,3802.2,3801.5,1.08568149]
[1641393868353,5.2571,3802.1,3801.6,0.00227369]
[1641393868595,0.65787,3801.8,3801.5,1.05246192]
[1641393868801,0.65787,3801.8,3801.1,3.57246756]
[1641393868802,5.5721,3801.7,3801.1,3.57246756]
[1641393868999,5.5721,3801.7,3799.7,3.57246756]
[1641393869206,1.0,3801.6,3801.2,0.0022737]
[1641393869403,1.0,3801.6,3799.7,3.57246756]
[1641393869404,6.88814,3801.5,3799.7,3.57246756]
[1641393869600,0.6398489,3800.5,3799.8,0.73495963]
[1641393869801,0.315,3801.0,3800.2,1.2880396]
[1641393870002,5.2571,3800.9,3800.2,1.5880396]
[1641393870202,5.2571,3800.9,3800.3,0.00511581]
[1641393871004,5.2571,3800.9,3800.8,1.23527165]
[1641393871403,25.2571,3800.9,3800.8,1.53754534]
[1641393871606,25.2571,3800.9,3800.8,0.30227369]
[1641393874357,25.2571,3800.9,3800.8,0.00227369]
[1641393874555,26.5721,3800.9,3800.8,0.00227369]
[1641393874755,26.5721,3800.9,3800.3,2.6]
[1641393874756,27.62588342,3800.9,3800.4,0.00454739]
[1641393875566,25.5721,3800.9,3800.4,0.00454739]
[1641393875758,25.2571,3800.9,3800.4,0.00454739]
[1641393877991,0.0020354,3801.2,3800.6,20.78216356]
[1641393878195,0.0020354,3801.2,3801.1,0.01238425]
[1641393878592,0.0020354,3801.2,3801.1,1.74189491]
[1641393878793,0.0020354,3801.2,3801.1,2.04189491]
[1641393879193,5.0,3802.0,3800.6,0.3]
[1641393879393,0.00284211,3801.2,3800.6,0.3]
[1641393879593,0.00341054,3801.3,3799.3,2.0]
[1641393879846,0.00227369,3801.1,3800.7,0.5868022]
[1641393880048,0.00284211,3801.2,3800.7,0.5868022]
[1641393880252,0.00170527,3801.0,3800.7,0.5868022]
[1641393880447,0.00227369,3801.1,3800.7,0.5868022]
[1641393880647,0.0020354,3801.5,3800.7,0.5868022]
[1641393880648,0.00113684,3800.9,3800.7,0.5868022]
[1641393880854,0.00170527,3801.0,3800.7,0.5868022]
[1641393881054,0.0020354,3801.5,3801.0,0.7889998]
[1641393881055,0.00397896,3801.4,3801.0,0.7889998]
[1641393881253,2.56951436,3802.0,3801.1,15.37]
[1641393881450,2.56951436,3802.0,3801.3,0.01268854]
[1641393881655,0.00114212,3801.9,3801.3,0.01268854]
[1641393881949,0.00114212,3801.9,3801.4,0.0017]
[1641393882348,0.00114212,3801.9,3801.7,0.75162454]
[1641393882549,0.00114212,3801.9,3801.7,0.3]
[1641393882753,0.00114212,3801.9,3801.4,2.6017]
[1641393883148,0.00114212,3801.9,3801.5,0.00113158]
[1641393884593,0.00114212,3801.9,3801.6,0.72523753]
[1641393884996,0.00114212,3801.9,3801.6,1.02523753]
[1641393888434,1.28406954,3801.7,3801.6,1.02523753]
[1641393889034,1.28521166,3801.9,3801.6,1.02523753]
[1641393889442,2.56951436,3802.0,3801.6,1.02523753]
[1641393889443,2.56951436,3802.0,3801.6,1.32523753]
[1641393889636,2.53382983,3802.4,3801.9,7.05]
[1641393889637,0.17072983,3802.4,3801.9,7.05]
[1641393889842,4.0557,3802.3,3802.0,2.92352674]
[1641393890043,5.76582977,3803.9,3802.2,0.66971194]
[1641393890241,4.09979455,3803.6,3803.3,6.85]
[1641393890641,0.58566825,3803.6,3803.4,2.01062176]
[1641393890851,4.60027251,3804.3,3803.5,7.06261515]
[1641393891089,3.93752481,3804.3,3804.2,7.06216844]
[1641393891293,3.93752481,3804.3,3804.2,1.23767394]
[1641393891489,3.93752481,3804.3,3804.2,1.93767394]
[1641393891688,0.65698,3806.5,3804.2,2.23767394]
[1641393891689,5.76292574,3806.2,3804.2,2.23767394]
[1641393891891,17.0,3805.6,3804.5,0.65694]
[1641393892089,0.0170527,3804.9,3804.5,0.95694]
[1641393892290,0.0170527,3804.9,3804.5,0.3]
[1641393892491,17.0,3805.6,3804.5,0.3]
[1641393892492,0.01648428,3804.8,3804.5,0.3]
[1641393892695,13.63294057,3805.6,3804.7,7.05]
[1641393892993,13.63294057,3805.6,3805.5,1.26581135]
[1641393893191,13.63294057,3805.6,3805.5,1.86581135]
[1641393893391,13.63748795,3805.6,3805.5,1.86581135]
[1641393893795,13.63748795,3805.6,3805.5,2.4716653]
[1641393894192,13.63748795,3805.6,3805.5,3.4716653]
[1641393894392,13.63748795,3805.6,3805.5,1.20585395]
[1641393894593,13.63748795,3805.6,3804.6,1.00113685]
[1641393894857,13.63748795,3805.6,3804.6,0.00113685]
[1641393895050,0.00397896,3805.5,3804.6,0.00113685]
[1641393895251,0.00397896,3805.5,3804.5,0.00170527]
[1641393895451,0.00341054,3805.4,3804.6,1.1899007]
[1641393895654,0.00341054,3805.4,3805.0,0.53805956]
[1641393895853,0.00284211,3805.3,3805.0,0.53805956]
[1641393896054,0.00284211,3805.3,3805.0,0.3]
[1641393896357,13.63294057,3805.6,3804.6,0.3]
[1641393896358,0.00227369,3805.2,3804.6,0.3]
[1641393896653,0.00170527,3805.1,3804.6,0.3]
[1641393896852,0.00170527,3805.1,3804.5,0.00170527]
[1641393897053,1.0,3805.5,3804.5,0.00170527]
[1641393897054,0.54153978,3805.0,3804.5,0.00170527]
[1641393897255,1.38333379,3804.7,3803.9,0.00511581]
[1641393897853,1.38333379,3804.7,3803.7,0.00625266]
[1641393898052,1.38333379,3804.7,3803.3,0.00852635]
[1641393898254,0.315,3804.6,3803.3,0.00852635]
[1641393898455,0.61504183,3803.6,3803.3,0.00852635]
[1641393898690,1.40467865,3803.5,3803.3,0.00852635]
[1641393898896,1.40467865,3803.5,3802.9,3.57374038]
[1641393898897,1.40467865,3803.5,3803.1,0.0096632]
[1641393899091,5.2584,3803.4,3803.0,0.01023163]
[1641393899492,1.0,3803.3,3803.0,0.01023163]
[1641393899692,5.2584,3803.2,3803.0,0.01023163]
[1641393900097,5.2584,3803.2,3802.9,0.01080005]
[1641393900796,5.2584,3803.2,3803.1,1.34059287]
[1641393900997,7.31871093,3803.2,3803.1,0.26306245]
[1641393901202,0.03377435,3803.1,3802.9,1.78738401]
[1641393901405,0.03377435,3803.1,3802.3,3.57374038]
[1641393901406,6.865,3803.0,3802.3,3.57374038]
[1641393901598,12.4234,3803.0,3802.3,3.57374038]
[1641393901798,1.0,3802.9,3802.4,0.00397897]
[1641393901998,5.5734,3802.8,3802.4,0.00397897]
[1641393902200,1.0,3802.7,3802.4,0.00397897]
[1641393902444,5.2584,3802.6,3802.4,2.81312217]
[1641393902643,5.2584,3802.6,3802.0,3.57374038]
[1641393902644,5.2584,3802.6,3802.1,0.00568424]
[1641393902844,5.2584,3802.6,3802.5,0.00341054]
[1641393903042,5.2584,3802.6,3802.1,0.00568424]
[1641393903243,5.2584,3802.6,3801.7,0.00795793]
[1641393903444,5.2584,3802.6,3802.1,0.72043279]
[1641393903646,5.2584,3802.6,3802.4,2.6]
[1641393904049,5.2584,3802.6,3802.5,0.00341054]
[1641393904745,2.59691661,3803.9,3802.6,7.05]
[1641393904953,0.00201275,3804.1,3803.4,0.0127885]
[1641393905149,0.00397896,3803.8,3803.4,0.0127885]
[1641393905349,0.00511581,3804.0,3803.4,0.0127885]
[1641393905550,0.00341054,3803.7,3803.4,0.0127885]
[1641393905750,0.00454739,3803.9,3803.4,0.55690069]
[1641393905949,0.71561876,3804.0,3803.4,0.55690069]
[1641393905950,0.00284212,3803.6,3803.4,0.55690069]
[1641393906190,2.59691661,3804.3,3803.4,0.55690069]
[1641393906191,0.00397896,3803.8,3803.4,0.84411219]
[1641393906393,0.00227369,3803.5,3803.4,0.97553219]
[1641393906595,6.86771443,3805.1,3803.4,0.97553219]
[1641393906596,0.00341054,3803.7,3803.4,0.97553219]
[1641393906890,0.00284212,3803.6,3803.4,0.97553219]
[1641393907297,0.00227369,3803.5,3803.4,0.97553219]
[1641393908497,0.00227369,3803.5,3803.4,19.00686077]
[1641393908696,0.00227369,3803.5,3803.4,3.63686077]
[1641393909101,2.73511658,3805.2,3803.4,3.63686077]
[1641393909102,2.59691661,3805.2,3803.5,7.05]
[1641393909297,2.59691661,3805.2,3804.3,0.65697]
[1641393909501,0.0603323,3804.8,3804.3,0.65697]
[1641393909699,0.1206646,3804.8,3804.7,0.0656895]
[1641393910147,0.1206646,3804.8,3804.7,5.06814126]
[1641393910345,0.00201275,3805.4,3804.9,15.37]
[1641393910546,0.00201275,3805.4,3805.0,0.6568]
[1641393910750,0.01023162,3805.3,3805.0,0.6568]
[1641393910946,0.01023162,3805.3,3805.0,1.02248]
[1641393911148,0.0096632,3805.2,3805.0,1.02248]
[1641393911349,6.32e-05,3805.2,3805.1,22.76555638]
[1641393911547,13.63294057,3805.6,3805.1,22.76555638]
[1641393911548,3.77e-06,3805.6,3805.2,7.65]
[1641393911751,0.00199036,3806.2,3805.4,0.55671]
[1641393911947,0.00199036,3806.2,3805.5,18.63530329]
[1641393912147,1.30651166,3806.5,3805.6,7.365]
[1641393912348,1.30651166,3806.5,3805.8,0.57177466]
[1641393912647,0.00682108,3806.4,3806.3,0.65661]
[1641393912849,0.00682108,3806.4,3805.9,1.3133]
[1641393913049,0.00682108,3806.4,3806.1,0.3]
[1641393913248,0.00682108,3806.4,3805.9,1.78612837]
[1641393913249,0.00625266,3806.3,3805.9,1.78612837]
[1641393913451,0.00625266,3806.3,3805.9,2.08612837]
[1641393913698,0.00568424,3806.2,3806.0,1.33961489]
[1641393914103,3.15511581,3806.1,3806.0,0.34951489]
[1641393914499,4.25,3805.9,3805.7,1.78612837]
[1641393914902,6.91529054,3805.8,3805.7,1.78612837]
[1641393915102,8.79911572,3805.8,3805.7,1.78612837]
[1641393915505,8.79911572,3805.8,3805.4,1.78612837]
[1641393915905,0.00284212,3805.7,3805.4,1.78612837]
[1641393916105,0.00284212,3805.7,3805.4,2.08612837]
[1641393916306,0.00227369,3805.6,3805.4,2.08612837]
[1641393916509,0.00227369,3805.6,3804.4,1.78612837]
[1641393916707,0.6572,3805.2,3804.4,1.78612837]
[1641393916909,0.6572,3805.2,3804.5,0.00397896]
[1641393917105,0.62527238,3804.8,3804.5,0.00397896]
[1641393917354,1.3144,3805.3,3804.5,0.00397896]
[1641393917548,1.03238925,3805.0,3804.5,0.00397896]
[1641393917748,1.03238925,3805.0,3804.3,0.00511581]
[1641393918349,1.03238925,3805.0,3804.0,0.14722926]
[1641393918350,9.8377072,3804.9,3804.0,0.14722926]
[1641393918550,9.8377072,3804.9,3803.5,3.57374038]
[1641393918551,7.05,3804.7,3803.5,3.57374038]
[1641393918749,7.05,3804.7,3804.1,0.00113685]
[1641393918750,0.01297629,3804.2,3804.1,0.00113685]
[1641393918948,6.9699737,3804.2,3804.1,0.00113685]
[1641393919148,7.95699741,3804.2,3804.1,0.00113685]
[1641393919349,8.516476,3804.2,3804.1,0.00113685]
[1641393919749,8.516476,3804.2,3803.4,0.00511581]
[1641393919952,0.65739,3803.9,3802.6,0.0096632]
[1641393920155,6.56963,3804.2,3803.2,1.16161874]
[1641393920357,5.2548,3804.2,3803.2,1.16161874]
[1641393920552,5.2548,3804.2,3803.3,15.37568423]
[1641393920953,5.2548,3804.2,3803.4,0.00511581]
[1641393921199,5.2548,3804.2,3803.9,0.69081107]
[1641393921401,5.2548,3804.2,3803.9,0.99081107]
[1641393921599,5.2548,3804.2,3804.0,0.00170527]
[1641393921800,5.2048,3804.2,3804.0,0.00170527]
[1641393922001,6.43236699,3804.2,3804.0,0.00170527]
[1641393922600,6.43236699,3804.2,3803.5,0.00454739]
[1641393922601,0.315,3804.1,3803.5,0.00454739]
[1641393922801,0.315,3804.1,3803.5,0.00284739]
[1641393922999,4.09270394,3804.1,3804.0,2.6]
[1641393923201,14.8848753,3804.1,3804.0,0.0001]
[1641393924001,18.34869119,3804.1,3804.0,0.0001]
[1641393924202,4.4,3804.0,3803.5,0.00284739]
[1641393924405,6.15794907,3803.9,3803.5,0.00284739]
[1641393924603,7.15794907,3803.9,3802.6,0.0079632]
[1641393924848,7.15794907,3803.9,3802.4,0.00910005]
[1641393924849,0.55535368,3802.9,3802.4,0.00910005]
[1641393925050,0.55535368,3802.9,3802.6,0.0079632]
[1641393925251,5.2048,3802.8,3802.6,3.54089955]
[1641393925650,5.2048,3802.8,3802.7,0.00739478]
[1641393925952,5.2048,3802.8,3802.7,3.54829433]
[1641393926751,5.82535712,3802.8,3802.7,3.54829433]
[1641393927752,5.2048,3802.8,3802.7,3.54829433]
[1641393929398,5.2048,3802.8,3802.5,1.78774087]
[1641393929602,7.765,3802.7,3802.5,1.78774087]
[1641393929797,5.2048,3802.6,3802.5,1.78774087]
[1641393930002,5.2048,3802.6,3801.7,1.99106619]
[1641393930003,5.5198,3802.6,3802.3,1.78774087]
[1641393930200,5.5198,3802.6,3802.5,0.00113684]
[1641393930605,5.2048,3802.6,3802.5,2.56525678]
[1641393931004,5.2048,3802.6,3802.5,3.16525678]
[1641393931501,5.2048,3802.6,3802.5,6.06525678]
[1641393931700,5.2048,3802.6,3802.5,7.15487695]
[1641393931900,5.2048,3802.6,3802.5,7.45487695]
[1641393932445,5.2048,3802.6,3802.5,7.64075701]
[1641393932845,5.2048,3802.6,3802.5,7.30124599]
[1641393932846,0.0001,3802.6,3802.5,7.30124599]
[1641393933044,0.0001,3802.6,3802.5,9.90124599]
[1641393934048,0.0001,3802.6,3802.5,12.04690561]
[1641393934249,5.0,3802.8,3802.6,0.65728]
[1641393934449,5.0,3802.8,3802.7,3.3]
[1641393934648,5.0,3802.8,3802.7,3.9]
[1641393934851,5.0,3802.8,3802.7,4.9]
[1641393935454,5.0,3802.8,3802.7,3.9]
[1641393935655,5.0,3802.8,3802.7,3.6]
[1641393935856,5.0,3802.8,3802.7,3.9]
[1641393936895,5.0,3802.8,3802.7,0.6]
[1641393937094,5.0,3802.8,3802.6,0.3]
[1641393937496,5.0,3802.8,3802.5,5.98304454]
[1641393937798,5.0,3802.8,3802.5,5.32574454]
[1641393938997,5.0,3802.8,3802.6,1.78769906]
[1641393939396,5.0,3802.8,3802.5,7.1134436]
[1641393940252,6.19916633,3802.8,3802.5,7.1134436]
[1641393940956,6.19916633,3802.8,3802.6,1.34083662]
[1641393943459,6.19916633,3802.8,3802.5,6.36658116]
[1641393944295,6.19916633,3802.8,3802.6,1.34083662]
[1641393944694,6.19916633,3802.8,3802.6,1.78769906]
[1641393945900,6.19916633,3802.8,3802.7,1.34085677]
[1641393946099,6.19916633,3802.8,3802.7,1.64085677]
[1641393946500,6.19916633,3802.8,3802.7,0.3]
[1641393947001,6.19916633,3802.8,3802.6,1.34085677]
[1641393947002,6.49916633,3802.8,3802.6,1.34085677]
[1641393947201,6.34625993,3802.7,3802.6,1.34085677]
[1641393947649,7.68084015,3802.7,3802.6,1.34085677]
[1641393948046,8.21696964,3802.7,3802.6,1.34085677]
[1641393948547,8.21696964,3802.7,3802.5,2.60113684]
[1641393948749,8.58677903,3802.6,3802.5,2.90113684]
[1641393948949,13.84637903,3802.6,3802.5,2.90113684]
[1641393949348,6.94637903,3802.6,3802.5,2.90113684]
[1641393949649,11.06127135,3802.6,3802.5,2.90113684]
[1641393950251,11.06127135,3802.6,3802.5,2.60113684]
[1641393950453,12.36127135,3802.6,3802.5,2.60113684]
[1641393950858,12.36127135,3802.6,3801.5,0.49800283]
[1641393950859,1.9728795,3801.6,3801.5,0.49800283]
[1641393951100,3.19005269,3801.6,3801.0,3.57374038]
[1641393951300,1.21717319,3801.5,3801.0,3.57374038]
[1641393951500,0.57910227,3801.3,3801.0,3.57374038]
[1641393951705,1.3155112,3801.0,3800.5,1.99106619]
[1641393951901,1.21717319,3800.9,3800.5,1.99106619]
[1641393952100,2.31028126,3800.9,3800.5,1.99106619]
[1641393952300,2.31028126,3800.9,3800.8,3.57643415]
[1641393952699,4.28373126,3800.9,3800.4,1.99106619]
[1641393952901,0.65784,3800.7,3800.4,1.99106619]
[1641393953100,1.80923678,3800.7,3800.4,1.99106619]
[1641393953506,1.80923678,3800.7,3800.2,4.46646748]
[1641393953507,1.80923678,3800.7,3799.4,4.46646748]
[1641393953902,0.6578787,3799.9,3799.8,0.58880323]
[1641393954302,1.15139678,3800.1,3799.8,0.59335062]
[1641393954501,1.1801406,3800.2,3799.8,0.59335062]
[1641393954701,1.1801406,3800.2,3799.9,0.00397896]
[1641393955866,0.65788,3800.0,3799.9,0.00397896]
[1641393956264,1.8380206,3800.0,3799.9,0.00397896]
[1641393956464,1.8380206,3800.0,3799.5,0.00625266]
[1641393956965,1.8380206,3800.0,3799.5,1.99731885]
[1641393956966,1.84870931,3799.8,3799.5,1.99731885]
[1641393957168,1.05185958,3799.7,3799.5,1.99731885]
[1641393958266,2.26276314,3799.7,3799.5,0.00625266]
[1641393958468,1.06820995,3799.6,3799.5,0.00625266]
[1641393958707,1.06820995,3799.6,3799.4,0.70036873]
[1641393958708,1.31584,3799.5,3799.4,0.70036873]
[1641393958907,1.06820995,3799.5,3799.4,0.70036873]
[1641393959108,0.6578215,3800.1,3799.4,8.05718981]
[1641393959304,1.06820995,3800.0,3799.4,0.60682108]
[1641393959507,1.3156808,3800.4,3799.5,0.00625266]
[1641393959508,1.06820995,3800.3,3799.5,0.00625266]
[1641393960312,0.62417781,3799.8,3799.5,0.00625266]
[1641393960512,1.39413586,3799.8,3799.5,0.00625266]
[1641393960711,1.42781805,3799.8,3799.5,0.30625266]
[1641393960911,0.76995805,3799.7,3799.3,0.0073895]
[1641393961914,0.65789,3799.6,3799.3,0.0073895]
[1641393962114,1.42784805,3799.6,3799.3,0.0073895]
[1641393962347,0.65794805,3799.6,3799.3,18.18852392]
[1641393962551,0.78043523,3799.6,3799.5,7.36271155]
[1641393962745,0.00113685,3800.8,3799.5,23.03271155]
[1641393962746,0.78043523,3800.3,3799.5,23.03271155]
[1641393962945,0.78043523,3799.6,3799.5,24.03896421]
[1641393963146,0.78043523,3799.6,3799.5,16.98896421]
[1641393963446,5.0,3799.6,3799.5,16.97625266]
[1641393963646,5.78043523,3799.6,3799.5,16.97625266]
[1641393964045,5.78043523,3799.6,3799.5,17.66852669]
[1641393964446,5.43156754,3799.6,3799.5,16.97625266]
[1641393965052,5.43156754,3799.6,3799.5,19.57625266]
[1641393965956,5.43156754,3799.6,3799.5,21.1771752]
[1641393966195,1.85418499,3799.6,3799.5,21.1771752]
[1641393966399,1.85418499,3799.6,3799.5,18.5771752]
[1641393966596,1.85418499,3799.6,3799.5,1.60625266]
[1641393966800,1.85418499,3799.6,3799.5,16.37625266]
[1641393966996,1.85418499,3799.6,3799.5,15.37625266]
[1641393967198,1.85418499,3799.6,3799.5,16.37625266]
[1641393967596,1.85418499,3799.6,3799.5,1.00625266]
[1641393967997,1.85418499,3799.6,3799.5,6.15625266]
[1641393968199,0.65787821,3799.9,3799.6,0.43141501]
[1641393968402,0.65787821,3799.9,3799.8,0.01216003]
[1641393968403,6.821e-05,3799.9,3799.8,0.01216003]
[1641393968599,6.821e-05,3799.9,3799.8,1.66981003]
[1641393968799,6.821e-05,3799.9,3799.8,17.14675742]
[1641393969003,0.65762,3801.1,3800.0,15.37]
[1641393969200,2.81799366,3801.3,3800.4,1.2467137]
[1641393969401,0.3975878,3801.2,3800.4,1.2467137]
[1641393969602,0.3975878,3801.1,3800.4,1.2467137]
[1641393969856,0.3975878,3801.0,3800.5,16.03544253]
[1641393970052,2.465e-05,3800.9,3800.8,7.05]
[1641393970249,0.3975878,3800.9,3800.8,7.05]
[1641393970448,0.00341054,3801.4,3800.8,7.35]
[1641393970649,0.00341054,3801.4,3800.8,8.35]
[1641393970849,0.00284212,3801.3,3800.6,0.00113685]
[1641393971051,0.65768,3801.1,3800.6,0.00113685]
[1641393971249,0.65768,3801.1,3800.5,0.00170527]
[1641393971450,0.00113685,3801.0,3800.3,0.00284212]
[1641393971654,0.00113685,3801.0,3800.3,15.37284212]
[1641393971850,0.58911468,3801.4,3800.8,0.65992314]
[1641393972150,0.00284212,3801.3,3800.8,0.65992314]
[1641393972553,0.00227369,3801.2,3800.8,0.65992314]
[1641393972753,0.00227369,3801.2,3801.0,1.27336437]
[1641393972952,0.00170527,3801.1,3801.0,1.27336437]
[1641393974018,0.00170527,3801.1,3801.0,2.27336437]
[1641393974818,0.00170527,3801.1,3801.0,2.57336437]
[1641393975018,0.00170527,3801.1,3801.0,4.07065905]
[1641393975220,0.00170527,3801.1,3801.0,4.27065905]
[1641393975419,0.00170527,3801.1,3801.0,19.64065905]
[1641393975818,0.00170527,3801.1,3801.0,3.97065905]
[1641393977854,0.00170527,3801.1,3801.0,2.47336437]
[1641393978053,0.00170527,3801.1,3801.0,1.47336437]
[1641393978456,0.60929527,3801.4,3801.0,1.47336437]
[1641393978853,0.00113685,3801.3,3801.0,1.47336437]
[1641393979055,3.685e-05,3801.3,3801.0,18.10094437]
[1641393979254,3.685e-05,3801.3,3801.2,8.83828158]
[1641393979564,1.2783073,3802.3,3801.3,7.0563636]
[1641393979756,1.2783073,3802.3,3801.9,0.01259328]
[1641393980053,0.00511581,3802.2,3801.9,0.01259328]
[1641393980254,3.40950665,3803.1,3801.9,0.01259328]
[1641393980255,1.2783073,3802.9,3802.2,7.05]
[1641393980457,7.3e-06,3802.9,3802.4,7.05]
[1641393980655,7.3e-06,3802.9,3802.5,1.6572]
[1641393981105,1.70475332,3803.2,3802.6,15.37]
[1641393981306,1.70475332,3803.2,3802.5,1.9572]
[1641393981307,0.65718,3803.8,3803.1,1.18651876]
[1641393981504,0.65718,3803.8,3803.4,0.60248721]
[1641393982303,0.65718,3803.8,3803.1,2.97395014]
[1641393982510,0.65732,3803.6,3803.1,1.78743138]
[1641393982805,0.64930782,3803.5,3803.1,1.78743138]
[1641393983004,0.64191832,3803.4,3803.1,1.78743138]
[1641393983204,0.34191832,3803.3,3803.1,1.78743138]
[1641393983404,2.11847329,3803.2,3803.1,1.78743138]
[1641393983705,2.11847329,3803.2,3802.8,1.49729468]
[1641393983706,0.6574345,3803.1,3802.8,1.49729468]
[1641393984008,6.45,3802.9,3802.7,1.78743138]
[1641393984204,0.8614657,3803.0,3802.7,3.138e-05]
[1641393984205,3.62724757,3802.8,3802.7,3.138e-05]
[1641393984404,0.61841054,3802.8,3802.2,0.0037287]
[1641393984612,0.91841054,3802.8,3802.2,0.0037287]
[1641393984852,0.6575877,3802.6,3802.2,0.0037287]
[1641393985058,0.315,3802.5,3802.2,0.0037287]
[1641393985255,0.31670527,3802.5,3802.2,0.2037287]
[1641393985458,0.65876684,3802.4,3802.2,0.2037287]
[1641393985658,0.00113684,3802.4,3802.2,0.2037287]
[1641393987267,2.74327995,3802.4,3802.2,0.2037287]
[1641393987863,0.65763,3802.2,3801.0,3.57487171]
[1641393988060,1.9728992,3802.2,3801.0,3.57487171]
[1641393988262,1.315272,3801.8,3801.2,0.65812687]
[1641393988607,1.265272,3801.8,3801.3,0.00511581]
[1641393989398,0.65763,3801.7,3801.3,0.00511581]
[1641393989805,1.315266,3801.7,3801.3,0.00511581]
[1641393990404,2.2689271,3801.7,3801.3,0.00511581]
[1641393990606,1.6112911,3801.7,3801.1,0.00625266]
[1641393990905,0.65768,3801.4,3801.1,0.00625266]
[1641393991107,1.6113411,3801.4,3800.6,0.00909478]
[1641393991304,1.6113411,3801.4,3801.2,0.00568424]
[1641393991507,0.75127998,3801.3,3800.6,1.70844465]
[1641393991808,0.75127998,3801.3,3800.7,0.00852635]
[1641393991809,0.9536611,3801.3,3800.7,0.00852635]
[1641393992210,0.9036611,3801.3,3800.7,15.37852635]
[1641393992652,0.9036611,3801.3,3800.8,0.00795793]
[1641393993856,0.9036611,3801.3,3800.8,2.26552793]
[1641393994059,0.90863651,3801.3,3801.0,0.01204969]
[1641393994556,0.90863651,3802.3,3801.1,0.00625266]
[1641393994756,0.00113684,3802.4,3801.1,0.00625266]
[1641393994757,0.72919307,3802.2,3801.1,0.00625266]
[1641393994964,0.72919307,3802.1,3801.8,0.63694774]
[1641393995159,1.06450294,3802.4,3801.8,0.63694774]
[1641393995160,0.72919307,3802.0,3801.8,0.63694774]
[1641393995360,0.72919307,3802.0,3801.9,0.00170527]
[1641393995759,0.72919307,3802.0,3801.6,2.76614433]
[1641393995959,0.72919307,3802.2,3801.6,2.76614433]
[1641393996207,0.72919307,3802.2,3801.7,1.66028212]
[1641393996411,0.72919307,3802.2,3801.8,19.07845935]
[1641393996611,0.72919307,3802.2,3801.8,19.18073305]
[1641393996812,0.60706361,3802.2,3801.9,15.47250527]
[1641393997016,0.60706361,3802.2,3802.0,3.99777087]
[1641393997212,0.00113684,3802.4,3802.2,14.76293639]
[1641393997413,0.00113684,3802.4,3802.3,3.95732]
[1641393997616,0.00113684,3802.4,3802.3,4.33210269]
[1641393997812,0.00113684,3802.4,3802.3,1.65732]
[1641393998012,0.00113684,3802.4,3802.3,16.02732]
[1641393998511,0.00113684,3802.4,3802.3,17.02732]
[1641393998711,0.00113684,3802.4,3802.3,1.65732]
[1641393998914,0.00113684,3802.4,3802.3,4.96229659]
[1641393999515,0.00113684,3802.4,3802.3,3.30497659]
[1641393999958,0.00113684,3802.4,3802.3,1.77471624]
[1641394000163,0.5570271,3802.6,3802.3,1.77471624]
[1641394000559,1.3149314,3802.6,3802.3,1.77471624]
[1641394000759,2.2724014,3802.6,3802.1,1.77471624]
[1641394000958,0.6574109,3802.5,3802.1,1.77471624]
[1641394001158,0.6574109,3802.5,3802.2,0.00113685]
[1641394001558,1.32778307,3802.5,3802.2,0.00113685]
[1641394001758,0.6574109,3802.5,3802.2,0.00113685]
[1641394002663,0.6574109,3802.5,3802.2,2.138725]
[1641394003260,0.6574109,3802.5,3802.3,1.77471624]
[1641394003459,0.6574109,3802.5,3802.3,2.13758815]
[1641394004916,0.6574109,3802.5,3802.4,2.34557853]
[1641394005117,0.6574109,3802.5,3802.4,2.6978235]
[1641394006019,0.9574109,3802.5,3802.4,1.98847453]
[1641394006220,1.2724109,3802.5,3802.4,0.35224497]
[1641394006417,1.2724109,3802.5,3802.4,0.3602682]
[1641394006619,3.3,3802.4,3802.2,0.00113685]
[1641394006818,1.99906065,3802.3,3802.2,0.00113685]
[1641394007117,2.29906065,3802.3,3802.2,0.3602682]
[1641394007357,1.22386016,3802.3,3802.2,0.3602682]
[1641394007556,1.22386016,3802.3,3802.2,0.36140504]
[1641394008358,1.22386016,3802.3,3802.2,0.00113684]
[1641394008761,0.6576246,3801.7,3801.0,0.70768807]
[1641394008964,2.37987314,3801.8,3801.0,0.00795792]
[1641394009161,2.37987314,3801.8,3801.1,0.0073895]
[1641394009361,2.37987314,3801.8,3801.0,0.00795792]
[1641394009761,0.6576332,3801.5,3801.0,0.00795792]
[1641394009962,0.6576332,3801.5,3801.0,1.53821827]
[1641394010163,1.35178386,3801.5,3801.0,1.53821827]
[1641394010363,1.35178386,3801.5,3801.1,0.0073895]
[1641394011210,0.3,3801.4,3801.1,0.0073895]
[1641394012211,1.31559,3801.3,3800.9,0.00852635]
[1641394012408,0.6577994,3801.1,3800.9,0.00852635]
[1641394013010,0.9577994,3801.1,3800.9,0.00852635]
[1641394013315,0.9577994,3801.1,3800.2,3.57487171]
[1641394013316,1.31564,3800.9,3800.3,0.01193689]
[1641394013511,0.6578128,3800.8,3800.3,0.01193689]
[1641394013910,2.01948496,3800.7,3800.3,0.01193689]
[1641394014111,3.23044548,3800.7,3800.3,0.01193689]
[1641394014988,3.23044548,3800.7,3799.6,1.53026035]
[1641394014989,0.95798,3800.3,3799.6,1.53026035]
[1641394015190,0.315,3800.2,3799.4,5.35204826]
[1641394015393,2.71801354,3800.1,3799.4,1.77717655]
[1641394015591,0.315,3800.0,3799.5,0.00113685]
[1641394015792,5.2625,3799.9,3799.5,0.00113685]
[1641394015997,0.315,3799.8,3798.9,0.60411792]
[1641394016196,5.2625,3799.7,3799.0,0.00397896]
[1641394016791,6.38681473,3799.7,3799.0,0.00397896]
[1641394016994,6.38681473,3799.7,3798.9,0.00454739]
[1641394017193,0.65807,3799.4,3798.5,0.00682108]
[1641394017394,0.6580286,3799.1,3798.5,0.00682108]
[1641394017792,0.6580286,3799.1,3798.5,0.72970979]
[1641394018194,0.6580286,3799.1,3798.6,0.00625266]
[1641394018496,1.30792409,3798.4,3798.2,9.71487171]
[1641394018913,3.07349069,3798.4,3798.3,0.00170527]
[1641394019116,2.73022409,3798.4,3798.3,0.00170527]
[1641394019314,8.99562409,3798.4,3798.3,0.00170527]
[1641394019512,8.99562409,3798.4,3798.2,4.44953238]
[1641394019711,1.88632127,3798.3,3798.2,0.87466067]
[1641394019916,7.46672127,3798.3,3798.0,1.53026035]
[1641394020116,7.70838,3798.2,3798.0,6.035e-05]
[1641394020318,1.1541426,3797.3,3796.2,7.44264076]
[1641394020521,7.7084853,3797.2,3797.0,0.4347066]
[1641394020717,7.7084853,3797.2,3796.2,7.44264076]
[1641394020718,3.25,3797.1,3796.8,4.73664054]